fUST/lending_fUST_20250925
["ID","MTS","AMOUNT","RATE_DAILY","PERIOD"]
[387575513,1758771043781,-480.0,0.00019351,2]
[387575516,1758771043792,-491.52753753,0.00019351,2]
[387575518,1758771043803,-500.0,0.00019351,2]
[387575520,1758771043814,-322.09470398,0.00019351,2]
[387575522,1758771043824,-370000.0,0.00019352,2]
[387575524,1758771043835,-500.0,0.00019373,2]
[387575526,1758771043848,-500.0,0.00019373,2]
[387575528,1758771043858,-510.47010389,0.00019373,2]
[387575530,1758771043869,-505.5219847,0.00019373,2]
[387575532,1758771043879,-474.949875,0.00019373,2]
[387575534,1758771043889,-505.20370892,0.00019373,2]
[387575537,1758771043900,-480.0,0.00019624,2]
[387575539,1758771043911,-480.0,0.00019624,2]
[387575541,1758771043921,-480.0,0.00019624,2]
[387575543,1758771043931,-299.75954113,0.00019624,2]
[387575545,1758771043940,-519.99,0.00019624,2]
[387575547,1758771043951,-480.0,0.00019624,2]
[387575549,1758771043961,-480.0,0.00019624,2]
[387575552,1758771043972,-480.0,0.00019624,2]
[387575554,1758771043982,-480.0,0.00019624,2]
[387575556,1758771043992,-480.0,0.00019624,2]
[387575558,1758771044006,-539.53,0.00019624,2]
[387575560,1758771044016,-480.0,0.00019624,2]
[387575562,1758771044027,-648.01,0.00019624,2]
[387575564,1758771044037,-480.0,0.00019624,2]
[387575567,1758771044051,-480.0,0.00019624,2]
[387575569,1758771044061,-480.0,0.00019624,2]
[387575571,1758771044072,-480.0,0.00019624,2]
[387575573,1758771044083,-480.0,0.00019624,2]
[387575575,1758771044094,-480.0,0.00019624,2]
[387575577,1758771044105,-480.0,0.00019624,2]
[387575579,1758771044117,-480.0,0.00019624,2]
[387575581,1758771044128,-480.0,0.00019624,2]
[387575583,1758771044140,-181.19303462,0.00019624,2]
[387575586,1758771044155,-338.72696538,0.00019624,2]
[387575588,1758771044165,-480.0,0.00019624,2]
[387575590,1758771044176,-1205.77,0.00019624,2]
[387575592,1758771044187,-910.1,0.00019624,2]
[387575594,1758771044198,-757.8,0.00019624,2]
[387575597,1758771044208,-688.12,0.00019624,2]
[387575599,1758771044220,-480.0,0.00019624,2]
[387575601,1758771044230,-480.0,0.00019624,2]
[387575603,1758771044240,-620.70816975,0.00019625,2]
[387575605,1758771044251,-480.0,0.00019625,2]
[387575607,1758771044261,-480.0,0.00019625,2]
[387575610,1758771044272,-480.0,0.00019625,2]
[387575612,1758771044282,-480.0,0.00019625,2]
[387575614,1758771044299,-480.0,0.00019625,2]
[387575616,1758771044310,-480.0,0.00019625,2]
[387575618,1758771044321,-795.15,0.00019625,2]
[387575641,1758771044528,-480.0,0.00019625,2]
[387575643,1758771044538,-480.0,0.00019625,2]
[387575646,1758771044553,-1625.66,0.00019625,2]
[387575648,1758771044563,-480.0,0.00019625,2]
[387575650,1758771044573,-753.69,0.00019625,2]
[387575652,1758771044582,-235.2607604,0.00019625,2]
[387575654,1758771044591,-480.0,0.00019625,2]
[387575656,1758771044601,-500.0,0.00019673,2]
[387575658,1758771044610,-272.93999317,0.00019898,2]
[387575660,1758771044619,-585.66665514,0.00019898,2]
[387575662,1758771044628,-480.0,0.00019898,2]
[387575664,1758771044637,-519.99,0.00019898,2]
[387575666,1758771044646,-480.0,0.00019898,2]
[387575668,1758771044655,-480.0,0.00019898,2]
[387575670,1758771044665,-480.0,0.00019898,2]
[387575672,1758771044675,-480.0,0.00019898,2]
[387575674,1758771044684,-480.0,0.00019898,2]
[387575676,1758771044693,-539.53,0.00019898,2]
[387575678,1758771044702,-480.0,0.00019898,2]
[387575680,1758771044712,-648.01,0.00019898,2]
[387575682,1758771044721,-480.0,0.00019898,2]
[387575684,1758771044730,-480.0,0.00019898,2]
[387575686,1758771044739,-480.0,0.00019898,2]
[387575688,1758771044749,-165.43590952,0.00019898,2]
[387575690,1758771044758,-289.44978629,0.00019898,2]
[387575849,1758771046271,-480.0,0.00019349,2]
[387575851,1758771046281,-482.04017095,0.00019349,2]
[387575853,1758771046290,-486.68618771,0.0001935,2]
[387575855,1758771046303,-483.49232256,0.0001935,2]
[387575857,1758771046312,-480.0,0.0001935,2]
[387575859,1758771046321,-763.48,0.0001935,2]
[387575861,1758771046331,-482.49512435,0.00019351,2]
[387575863,1758771046340,-500.0,0.00019351,2]
[387575865,1758771046349,-497.16748905,0.00019623,2]
[387575867,1758771046359,-480.0,0.00019624,2]
[387575869,1758771046368,-763.48,0.00019624,2]
[387575871,1758771046378,-190.55021371,0.00019898,2]
[387575873,1758771046387,-480.0,0.00019898,2]
[387575875,1758771046396,-480.0,0.00019898,2]
[387575877,1758771046405,-480.0,0.00019898,2]
[387575879,1758771046415,-480.0,0.00019898,2]
[387575881,1758771046425,-519.92,0.00019898,2]
[387575883,1758771046434,-480.0,0.00019898,2]
[387575885,1758771046444,-1205.77,0.00019898,2]
[387575887,1758771046453,-910.1,0.00019898,2]
[387575890,1758771046463,-757.8,0.00019898,2]
[387575892,1758771046473,-688.12,0.00019898,2]
[387575895,1758771046482,-480.0,0.00019898,2]
[387575897,1758771046491,-480.0,0.00019898,2]
[387575899,1758771046501,-480.0,0.00019898,2]
[387575901,1758771046510,-763.48,0.00019898,2]
[387575902,1758771046520,-480.0,0.00019899,2]
[387575903,1758771046529,-480.0,0.00019899,2]
[387575904,1758771046539,-377.41849151,0.00019899,2]
[387575905,1758771046553,-102.58150849,0.00019899,2]
[387575906,1758771046562,-480.0,0.00019899,2]
[387575907,1758771046572,-480.0,0.00019899,2]
[387575908,1758771046582,-480.0,0.00019899,2]
[387575909,1758771046591,-385.21989085,0.00019899,2]
[387575910,1758771046618,-500.0,0.00019351,2]
[387575911,1758771046628,-94.78010915,0.00019899,2]
[387575912,1758771046638,-480.0,0.00019899,2]
[387575913,1758771046647,-1625.66,0.00019899,2]
[387575914,1758771046657,-480.0,0.00019899,2]
[387575915,1758771046666,-29.05989085,0.00019899,2]
[387576288,1758771103763,162.0606673,0.00018498,2]
[387576289,1758771191228,300.0,0.000185,2]
[387576291,1758771251592,203.55681236,0.000185,2]
[387576297,1758771436942,214.59883956,0.000185,2]
[387576301,1758771570281,151.07316895,0.00029371,60]
[387576303,1758771665946,-161.33878193,0.0001925,2]
[387576304,1758771675941,-818.2489818,0.00019273,2]
[387576305,1758771679097,-260.35,0.00019342,3]
[387576306,1758771679131,-781.05,0.00019342,3]
[387576307,1758771690977,-300.0,0.00019347,2]
[387576308,1758771693411,157.3356586,0.00019273,2]
[387576309,1758771701021,-7682.93969177,0.00019348,2]
[387576310,1758771711011,-3424.26591527,0.00019348,2]
[387576311,1758771711034,-3151.47816946,0.00019348,2]
[387576314,1758771761419,179.275377,0.00018769,2]
[387576315,1758771761927,161.81354495,0.00018769,2]
[387576324,1758772009103,-691.75085513,0.00019173,2]
[387576325,1758772009125,-545.4993212,0.00019273,2]
[387576326,1758772009146,-300.0,0.000193,2]
[387576327,1758772009165,-300.0,0.000193,2]
[387576328,1758772009185,-300.0,0.000193,2]
[387576329,1758772009205,-300.0,0.000193,2]
[387576330,1758772009228,-274.61048347,0.00019347,2]
[387576331,1758772009248,-480.0,0.00019347,2]
[387576332,1758772009271,-480.0,0.00019347,2]
[387576333,1758772009293,-485.18264488,0.00019347,2]
[387576334,1758772009314,-200.7564812,0.00019347,2]
[387576335,1758772019865,150.0,0.00022212,30]
[387576336,1758772035982,253.45222978,0.00018867,2]
[387576337,1758772037732,253.45222978,0.00018867,2]
[387576338,1758772037757,759.34288042,0.00018867,2]
[387576342,1758772190357,157.85801748,0.00018867,2]
[387576343,1758772192380,630.80063787,0.00018867,2]
[387576351,1758772232382,-161.33878193,0.00019248,2]
[387576352,1758772232391,-146.76051806,0.00019273,2]
[387576353,1758772232435,-216.90569608,0.00019273,2]
[387576354,1758772232445,-464.64751702,0.00019342,3]
[387576355,1758772232490,-56.05248298,0.00019342,3]
[387576356,1758772232499,-229.60192548,0.00019347,2]
[387576357,1758772232508,-124.45460329,0.00019347,2]
[387576358,1758772232520,-76.71282573,0.00019347,2]
[387576359,1758772232530,-485.5764904,0.00019347,2]
[387576360,1758772232539,-482.26755794,0.00019347,2]
[387576361,1758772232549,-490.47966602,0.00019347,2]
[387576362,1758772232558,-488.30280642,0.00019347,2]
[387576363,1758772232567,-480.0,0.00019347,2]
[387576364,1758772232577,-493.16488774,0.00019347,2]
[387576365,1758772232587,-486.6938012,0.00019347,2]
[387576366,1758772232596,-485.20266112,0.00019347,2]
[387576367,1758772232606,-489.18662811,0.00019347,2]
[387576368,1758772232615,-534.28939036,0.00019347,2]
[387576369,1758772232624,-490.03414677,0.00019347,2]
[387576370,1758772232633,-487.07241406,0.00019347,2]
[387576371,1758772232644,-483.36901824,0.00019347,2]
[387576372,1758772232653,-486.86566958,0.00019347,2]
[387576373,1758772232662,-485.6076305,0.00019347,2]
[387576374,1758772232672,-490.81318838,0.00019347,2]
[387576375,1758772232680,-400.43017845,0.00019347,2]
[387576376,1758772232690,-487.67467611,0.00019347,2]
[387576378,1758772232698,-499.78252551,0.00019347,2]
[387576380,1758772232707,-503.17023457,0.00019347,2]
[387576382,1758772232717,-469.26261065,0.00019347,2]
[387576384,1758772232726,-480.0,0.00019347,2]
[387576386,1758772232735,-516.92,0.00019347,2]
[387576388,1758772232745,-480.0,0.00019347,2]
[387576390,1758772232754,-482.0621899,0.00019347,2]
[387576392,1758772232763,-481.42249477,0.00019348,2]
[387576394,1758772232772,-470.0,0.00019348,2]
[387576396,1758772232781,-482.10745441,0.00019348,2]
[387576397,1758772232791,-482.59234591,0.00019348,2]
[387576400,1758772232801,-480.0,0.00019348,2]
[387576402,1758772232810,-481.47688137,0.00019348,2]
[387576403,1758772232819,-483.66639411,0.00019348,2]
[387576405,1758772232828,-482.1120525,0.00019348,2]
[387576407,1758772232837,-480.0,0.00019348,2]
[387576409,1758772232847,-486.69392647,0.00019348,2]
[387576411,1758772232856,-480.0,0.00019348,2]
[387576413,1758772232865,-481.6354224,0.00019348,2]
[387576415,1758772232875,-482.13924846,0.00019348,2]
[387576417,1758772232884,-480.0,0.00019348,2]
[387576419,1758772232893,-480.0,0.00019348,2]
[387576421,1758772232902,-480.0,0.00019348,2]
[387576423,1758772232911,-295.21258184,0.00019348,2]
[387576958,1758772238284,-480.0,0.00019347,2]
[387576960,1758772238293,-186.49616936,0.00019348,2]
[387576962,1758772238303,-480.0,0.00019348,2]
[387576964,1758772238312,-480.0,0.00019348,2]
[387576966,1758772238322,-502.04431683,0.00019348,2]
[387576968,1758772238331,-500.0,0.00019348,2]
[387576969,1758772238344,-480.0,0.00019348,2]
[387576970,1758772238353,-480.0,0.00019348,2]
[387576971,1758772238361,-481.43988183,0.00019348,2]
[387576972,1758772238367,-484.90623084,0.00019348,2]
[387576973,1758772238374,-480.0,0.00019348,2]
[387576974,1758772238381,-480.0,0.00019348,2]
[387576975,1758772238387,-480.0,0.00019348,2]
[387576976,1758772238395,-480.0,0.00019348,2]
[387576977,1758772238401,-480.0,0.00019348,2]
[387576978,1758772238408,-484.46269977,0.00019348,2]
[387576979,1758772238415,-483.29383467,0.00019348,2]
[387576980,1758772238421,-165.3568667,0.00019348,2]
[387576981,1758772238431,-314.6431333,0.00019348,2]
[387576983,1758772238439,-480.0,0.00019348,2]
[387576984,1758772238445,-480.0,0.00019348,2]
[387576985,1758772238452,-480.0,0.00019348,2]
[387576986,1758772238459,-480.0,0.00019348,2]
[387576987,1758772238468,-480.0,0.00019348,2]
[387576989,1758772238475,-489.33740412,0.00019348,2]
[387576990,1758772238481,-293.41946258,0.00019348,2]
[387576991,1758772238496,-542.08053742,0.00019348,2]
[387576992,1758772238503,-481.36940069,0.00019348,2]
[387576993,1758772238510,-480.0,0.00019348,2]
[387576994,1758772238517,-480.0,0.00019348,2]
[387576995,1758772238523,-480.0,0.00019348,2]
[387576996,1758772238529,-483.91675022,0.00019348,2]
[387576997,1758772238536,-588.62,0.00019348,2]
[387576998,1758772238543,-652.16,0.00019348,2]
[387576999,1758772238550,-742.42,0.00019348,2]
[387577000,1758772238557,-480.0,0.00019348,2]
[387577001,1758772238564,-480.0,0.00019348,2]
[387577002,1758772238571,-480.0,0.00019348,2]
[387577003,1758772238577,-504.83,0.00019348,2]
[387577004,1758772238585,-480.0,0.00019348,2]
[387577005,1758772238591,-480.0,0.00019348,2]
[387577006,1758772238598,-480.0,0.00019348,2]
[387577007,1758772238607,-480.0,0.00019348,2]
[387577009,1758772238616,-480.0,0.00019348,2]
[387577011,1758772238624,-488.53907316,0.00019348,2]
[387577012,1758772238631,-480.0,0.00019348,2]
[387577014,1758772238638,-480.0,0.00019348,2]
[387577016,1758772238645,-480.0,0.00019348,2]
[387577018,1758772238652,-480.0,0.00019348,2]
[387577020,1758772238659,-480.0,0.00019348,2]
[387577022,1758772238667,-480.0,0.00019348,2]
[387577024,1758772238675,-480.0,0.00019348,2]
[387577026,1758772238683,-480.0,0.00019348,2]
[387577028,1758772238691,-480.0,0.00019348,2]
[387577030,1758772238700,-491.82694816,0.00019348,2]
[387577032,1758772238708,-488.64893942,0.00019348,2]
[387577034,1758772238715,-485.78060634,0.00019348,2]
[387577035,1758772238723,-836.62,0.00019348,2]
[387577037,1758772238730,-481.67216273,0.00019348,2]
[387577039,1758772238737,-480.0,0.00019348,2]
[387577041,1758772238744,-480.0,0.00019348,2]
[387577043,1758772238751,-480.0,0.00019348,2]
[387577045,1758772238760,-480.0,0.00019348,2]
[387577047,1758772238768,-480.0,0.00019348,2]
[387577049,1758772238776,-480.0,0.00019348,2]
[387577051,1758772238784,-493.48235649,0.00019348,2]
[387577053,1758772238792,-1161.52,0.00019348,2]
[387577056,1758772238803,-480.0,0.00019348,2]
[387577058,1758772238810,-483.98288976,0.00019348,2]
[387577059,1758772238818,-480.0,0.00019348,2]
[387577061,1758772238825,-480.0,0.00019348,2]
[387577063,1758772238833,-492.06758118,0.00019348,2]
[387577066,1758772238842,-492.15442356,0.00019348,2]
[387577068,1758772238851,-491.37667339,0.00019348,2]
[387577070,1758772238857,-1535.3,0.00019348,2]
[387577072,1758772238865,-484.12497155,0.00019348,2]
[387577074,1758772238873,-480.0,0.00019349,2]
[387577076,1758772238881,-383.23791657,0.00019349,2]
[387577078,1758772238889,-215.87116998,0.00019349,2]
[387577080,1758772238897,-482.1693026,0.00019349,2]
[387577081,1758772238904,-480.0,0.00019349,2]
[387577083,1758772238912,-276.06107382,0.00019349,2]
[387577085,1758772238920,-499.09272893,0.00019349,2]
[387577087,1758772238928,-468.86304731,0.00019349,2]
[387577089,1758772238937,-480.0,0.00019349,2]
[387577091,1758772238945,-480.0,0.00019349,2]
[387577094,1758772238956,-480.0,0.00019349,2]
[387577096,1758772238963,-480.0,0.00019349,2]
[387577098,1758772238971,-483.97608073,0.00019349,2]
[387577100,1758772238979,-481.01172291,0.00019349,2]
[387577102,1758772238987,-480.85675468,0.00019349,2]
[387577103,1758772238995,-480.0,0.00019349,2]
[387577106,1758772239004,-548.438831,0.00019349,2]
[387577108,1758772239013,-480.0,0.00019349,2]
[387577110,1758772239020,-480.0,0.00019349,2]
[387577112,1758772239028,-480.0,0.00019349,2]
[387577114,1758772239036,-480.0,0.00019349,2]
[387577116,1758772239044,-482.42097777,0.00019349,2]
[387577118,1758772239052,-480.0,0.00019349,2]
[387577119,1758772239059,-484.29622595,0.00019349,2]
[387577121,1758772239067,-313.48774268,0.00019349,2]
[387577123,1758772239075,-480.0,0.00019349,2]
[387577125,1758772239085,-492.4020606,0.00019349,2]
[387577127,1758772239093,-483.28817287,0.00019349,2]
[387577129,1758772239101,-483.6702963,0.00019349,2]
[387577131,1758772239110,-480.0,0.00019349,2]
[387577133,1758772239117,-491.06647143,0.00019349,2]
[387577135,1758772239124,-481.96056102,0.00019349,2]
[387577137,1758772239132,-487.05303371,0.00019349,2]
[387577139,1758772239140,-483.31409388,0.00019349,2]
[387577141,1758772239147,-485.31164915,0.00019349,2]
[387577143,1758772239154,-485.5240824,0.00019349,2]
[387577145,1758772239162,-484.36760473,0.00019349,2]
[387577147,1758772239170,-480.0,0.00019349,2]
[387577149,1758772239178,-491.34273836,0.00019349,2]
[387577151,1758772239186,-483.93724099,0.00019349,2]
[387577153,1758772239193,-480.0,0.00019349,2]
[387577155,1758772239202,-480.0,0.00019349,2]
[387577157,1758772239209,-485.45329202,0.00019349,2]
[387577159,1758772239217,-483.3122967,0.00019349,2]
[387577161,1758772239225,-494.04621083,0.00019349,2]
[387577163,1758772239234,-500.0,0.00019349,2]
[387577165,1758772239241,-494.8571705,0.00019349,2]
[387577167,1758772239250,-480.0,0.00019349,2]
[387577169,1758772239258,-480.0,0.00019349,2]
[387577171,1758772239266,-482.64668106,0.00019349,2]
[387577172,1758772239274,-483.30450113,0.00019349,2]
[387577173,1758772239282,-484.39830416,0.00019349,2]
[387577174,1758772239290,-487.60931904,0.00019349,2]
[387577175,1758772239299,-483.59618953,0.00019349,2]
[387577176,1758772239308,-483.32793954,0.00019349,2]
[387577177,1758772239317,-485.63363636,0.00019349,2]
[387577178,1758772239326,-485.73021008,0.00019349,2]
[387577179,1758772239335,-483.59322083,0.00019349,2]
[387577180,1758772239350,-485.65973194,0.00019349,2]
[387577181,1758772239359,-485.4533072,0.00019349,2]
[387577182,1758772239368,-485.10227576,0.00019349,2]
[387577183,1758772239377,-483.02086266,0.00019349,2]
[387577184,1758772239388,-480.0,0.00019349,2]
[387577185,1758772239397,-1020.52,0.00019349,2]
[387577186,1758772239407,-482.7037132,0.00019349,2]
[387577187,1758772239417,-482.61048095,0.00019349,2]
[387577188,1758772239433,-500.0,0.00019349,2]
[387577189,1758772239448,-154.13554656,0.00019349,2]
[387577190,1758772239463,-151.0,0.00019349,2]
[387577191,1758772239472,-151.0,0.00019349,2]
[387577192,1758772239481,-518.73915379,0.00019349,2]
[387577193,1758772239490,-480.0,0.00019349,2]
[387577194,1758772239499,-480.0,0.00019349,2]
[387577195,1758772239516,-977.43,0.00019349,2]
[387577196,1758772239525,-740.66,0.00019349,2]
[387577197,1758772239534,-502.1735186,0.00019349,2]
[387577198,1758772239543,-480.0,0.00019349,2]
[387577199,1758772239553,-480.0,0.00019349,2]
[387577200,1758772239562,-480.0,0.00019349,2]
[387577201,1758772239570,-260.51471919,0.00019349,2]
[387577202,1758772239578,-485.91999928,0.00019349,2]
[387577203,1758772239588,-152.61617681,0.00019349,2]
[387577204,1758772239597,-200.0,0.00019349,10]
[387577205,1758772239606,-200.0,0.00019349,10]
[387577206,1758772239615,-200.0,0.00019349,10]
[387577207,1758772239624,-200.0,0.00019349,10]
[387577208,1758772239633,-154.783352,0.00019349,10]
[387577209,1758772239642,-159.04995739,0.00019349,2]
[387577210,1758772239651,-484.79173251,0.00019349,2]
[387577211,1758772239660,-480.0,0.00019349,2]
[387577212,1758772239669,-480.0,0.00019349,2]
[387577213,1758772239678,-153.9317284,0.00019349,2]
[387577214,1758772239687,-156.86260445,0.00019349,2]
[387577215,1758772239697,-486.55067982,0.0001935,2]
[387577216,1758772239706,-481.96007355,0.0001935,2]
[387577217,1758772239715,-480.0,0.0001935,2]
[387577218,1758772239725,-480.0,0.0001935,2]
[387577219,1758772239734,-484.29106391,0.0001935,2]
[387577220,1758772239743,-216.71879048,0.0001935,2]
[387577221,1758772239752,-480.0,0.0001935,2]
[387577222,1758772239761,-480.0,0.0001935,2]
[387577223,1758772239771,-424.00136739,0.0001935,2]
[387577224,1758772239781,-481.73126222,0.0001935,2]
[387577225,1758772239789,-480.0,0.0001935,2]
[387577226,1758772239798,-151.0,0.0001935,2]
[387577227,1758772239805,-484.83885349,0.0001935,2]
[387577229,1758772239812,-484.73850624,0.0001935,2]
[387577230,1758772239821,-480.0,0.0001935,2]
[387577231,1758772239830,-480.0,0.0001935,2]
[387577232,1758772239837,-496.25996679,0.0001935,2]
[387577233,1758772239845,-480.0,0.0001935,2]
[387577234,1758772239851,-483.1896168,0.0001935,2]
[387577235,1758772239860,-151.0,0.0001935,2]
[387577236,1758772239868,-480.0,0.0001935,2]
[387577237,1758772239877,-480.0,0.0001935,2]
[387577238,1758772239885,-480.0,0.0001935,2]
[387577239,1758772239893,-480.0,0.0001935,2]
[387577240,1758772239899,-472.54095806,0.0001935,2]
[387577241,1758772239908,-486.12380103,0.0001935,2]
[387577243,1758772239917,-487.87615042,0.0001935,2]
[387577245,1758772239926,-480.0,0.0001935,2]
[387577246,1758772239936,-480.0,0.0001935,2]
[387577247,1758772239945,-541.14,0.0001935,2]
[387577248,1758772239954,-480.0,0.0001935,2]
[387577249,1758772239963,-480.0,0.0001935,2]
[387577250,1758772239972,-480.0,0.0001935,2]
[387577251,1758772239981,-583.02774114,0.0001935,2]
[387577252,1758772239989,-480.0,0.0001935,2]
[387577253,1758772239997,-480.0,0.0001935,2]
[387577254,1758772240004,-480.0,0.0001935,2]
[387577255,1758772240014,-480.0,0.0001935,2]
[387577256,1758772240023,-480.0,0.0001935,2]
[387577257,1758772240032,-465.73396556,0.0001935,2]
[387577258,1758772240041,-480.0,0.0001935,2]
[387577259,1758772240052,-490.77877003,0.0001935,2]
[387577260,1758772240060,-480.0,0.0001935,2]
[387577261,1758772240069,-485.46391451,0.0001935,2]
[387577262,1758772240078,-480.0,0.0001935,2]
[387577263,1758772240087,-480.0,0.0001935,2]
[387577264,1758772240096,-485.2248763,0.0001935,2]
[387577265,1758772240105,-491.15562936,0.0001935,2]
[387577266,1758772240114,-506.2002248,0.0001935,2]
[387577267,1758772240123,-480.0,0.0001935,2]
[387577268,1758772240132,-480.0,0.0001935,2]
[387577269,1758772240141,-492.22157627,0.0001935,2]
[387577270,1758772240150,-509.23183077,0.0001935,2]
[387577271,1758772240160,-482.1279656,0.0001935,2]
[387577272,1758772240169,-480.0,0.0001935,2]
[387577273,1758772240178,-480.0,0.0001935,2]
[387577274,1758772240188,-638.21,0.0001935,2]
[387577275,1758772240197,-480.0,0.0001935,2]
[387577276,1758772240206,-577.31597979,0.0001935,2]
[387577277,1758772240215,-945.19,0.0001935,2]
[387577278,1758772240224,-536.12728573,0.0001935,2]
[387577279,1758772240233,-480.0,0.0001935,2]
[387577280,1758772240242,-481.88362083,0.0001935,2]
[387577281,1758772240251,-480.0,0.0001935,2]
[387577282,1758772240260,-2438.07,0.0001935,2]
[387577283,1758772240269,-480.0,0.0001935,2]
[387577284,1758772240279,-480.0,0.0001935,2]
[387577285,1758772240385,-612.48,0.0001935,2]
[387577286,1758772240394,-486.50381266,0.0001935,2]
[387577287,1758772240403,-507.51880547,0.0001935,2]
[387577288,1758772240412,-480.0,0.00019351,2]
[387577289,1758772240421,-480.0,0.00019351,2]
[387577291,1758772240431,-643.66656951,0.00019351,2]
[387577293,1758772240441,-500.0,0.00019351,2]
[387577295,1758772240450,-429.09719061,0.00019351,2]
[387577297,1758772240459,-500.0,0.00019351,2]
[387577299,1758772240468,-1640.81529294,0.00019351,2]
[387577301,1758772240478,-242.36645541,0.00019352,2]
[387577303,1758772240488,-152.854146,0.00019352,2]
[387577305,1758772240497,-151.0,0.00019352,2]
[387577307,1758772240507,-151.0,0.00019352,2]
[387577309,1758772240517,-154.358051,0.00019352,2]
[387577311,1758772240527,-151.0,0.00019352,2]
[387577313,1758772240536,-163.710445,0.00019352,2]
[387577315,1758772240546,-163.710445,0.00019352,2]
[387577317,1758772240557,-163.710445,0.00019352,2]
[387577319,1758772240567,-163.710445,0.00019352,2]
[387577321,1758772240577,-157.940762,0.00019352,2]
[387577323,1758772240587,-157.940762,0.00019352,2]
[387577326,1758772240596,-157.940762,0.00019352,2]
[387577328,1758772240607,-157.940762,0.00019352,2]
[387577329,1758772240615,-152.141053,0.00019352,2]
[387577330,1758772240625,-155.518796,0.00019352,2]
[387577331,1758772240634,-151.0,0.00019352,2]
[387577332,1758772240643,-151.0,0.00019352,2]
[387577333,1758772240652,-151.893397,0.00019352,2]
[387577334,1758772240661,-151.0,0.00019352,2]
[387577335,1758772240670,-154.401662,0.00019352,2]
[387577336,1758772240678,-151.0,0.00019352,2]
[387577337,1758772240687,-370000.0,0.00019352,2]
[387577338,1758772240696,-500.0,0.00019373,2]
[387577339,1758772240705,-500.0,0.00019373,2]
[387577340,1758772240714,-500.0,0.00019373,2]
[387577341,1758772240723,-500.0,0.00019373,2]
[387577342,1758772240732,-500.0,0.00019373,2]
[387577343,1758772240741,-500.0,0.00019373,2]
[387577344,1758772240750,-500.0,0.00019373,2]
[387577345,1758772240759,-329.04586328,0.00019373,2]
[387577346,1758772240769,-500.0,0.00019373,2]
[387577347,1758772240778,-150.40787129,0.00019373,2]
[387577348,1758772240787,-519.27179089,0.00019373,2]
[387577349,1758772240796,-500.0,0.00019373,2]
[387577350,1758772240806,-265.42966947,0.00019373,2]
[387577351,1758772240816,-500.0,0.00019373,2]
[387577352,1758772240825,-500.0,0.00019373,2]
[387577353,1758772240836,-500.0,0.00019373,2]
[387577354,1758772240846,-500.0,0.00019373,2]
[387577355,1758772240856,-500.0,0.00019373,2]
[387577356,1758772240866,-500.0,0.00019373,2]
[387577357,1758772240875,-500.0,0.00019373,2]
[387577358,1758772240885,-500.0,0.00019373,2]
[387577359,1758772240894,-500.0,0.00019373,2]
[387577360,1758772240903,-500.0,0.00019373,2]
[387577361,1758772240913,-1824.8968544,0.00019579,2]
[387577362,1758772240922,-10534.97476569,0.00019585,2]
[387577363,1758772240931,-488.02441998,0.00019621,2]
[387577364,1758772240941,-480.0,0.00019621,2]
[387577365,1758772240951,-516.92,0.00019621,2]
[387577366,1758772240960,-511.60244018,0.00019621,2]
[387577367,1758772240970,-480.0,0.00019622,2]
[387577368,1758772240980,-480.0,0.00019622,2]
[387577369,1758772240989,-482.9208736,0.00019622,2]
[387577370,1758772240999,-480.0,0.00019622,2]